Cogmind - Beta 11 X10 @@@ ROGUE MODE // 2022.02.17 @ 11:53:56 Player: maxwell Result: Destroyed by as-90643 with Assembled Blade Performance ------------- Evolutions (0) 0 Regions Visited (2) 400 Robots Destroyed (32) 160 Value Destroyed (414) 414 Prototype IDs (3) 60 Alien Tech Used (0) 0 Bonus (-127) -127 TOTAL SCORE: 907 Bonus ------- Friendly Fire -127 Cogmind --------- Core Integrity 0/250 Matter 292/300 Energy 230/250 System Corruption 2% Temperature Cool (40) Movement Rolling (110) Ox2 Location -10/Mines Parts ------- > --- POWER (1) -------- Ion Engine > --- PROPULSION (2) --- Wheel Wheel > --- UTILITY (2) ------ Disposable Heat Sink High-capacity Storage Unit > --- WEAPON (2) ------- Improved EM Shotgun Improved EM Shotgun > --- INVENTORY (20) --- Light Angular Momentum Engine Wheel Wheel Wheel Compact Wheel Compact Wheel Heat Sink Improved Heat Sink Disposable Heat Sink Disposable Heat Sink Disposable Heat Sink Targeting Computer EM Pulse Gun Improved EM Shotgun Small Laser Particle Gun Grenade Launcher Grenade Launcher Grenade Launcher Peak State ------------ > --- POWER ------------ Ion Engine > --- PROPULSION ------- Compact Wheel Compact Wheel > --- UTILITY ---------- Disposable Heat Sink High-capacity Storage Unit > --- WEAPON ----------- Improved EM Shotgun Improved EM Shotgun > --- INVENTORY -------- Light Angular Momentum Engine Wheel Wheel Wheel Wheel Wheel Compact Wheel Compact Wheel Improved Heat Sink Disposable Heat Sink Disposable Heat Sink Disposable Heat Sink EM Pulse Gun Improved EM Shotgun Small Laser Particle Gun Grenade Launcher Grenade Launcher Grenade Launcher [Rating: 15] Favorites ----------- Power Ion Engine Engine Ion Engine Propulsion Compact Wheel Treads Light Treads Wheel Compact Wheel Utility High-capacity Storage Unit Device Disposable Heat Sink Storage High-capacity Storage Unit Weapon Improved EM Shotgun Energy Gun Improved EM Shotgun Ballistic Gun Light Assault Rifle Launcher Grenade Launcher Build | -11 -10 -10 ------- Run | Scr Mat Min Slots Evolved . | . . . Power . | . . . Propulsion . | . . . Utility . | . . . Weapon . | . . . Parts Attached 22 | 6 11 5 Power 2 | 1 1 . Engine 2 | 1 1 . Core . | . . . Reactor . | . . . Propulsion 6 | 2 2 2 Treads 2 | 2 . . Leg . | . . . Wheel 4 | . 2 2 Hover . | . . . Flight . | . . . Utility 4 | 1 3 . Device 2 | . 2 . Storage 2 | 1 1 . Processor . | . . . Hackware . | . . . Protection . | . . . Artifact . | . . . Weapon 10 | 2 5 3 Energy Gun 6 | . 4 2 Energy Cannon . | . . . Ballistic Gun 3 | 2 1 . Ballistic Cannon . | . . . Launcher 1 | . . 1 Special Weapon . | . . . Impact Weapon . | . . . Slashing Weapon . | . . . Piercing Weapon . | . . . Special Melee Weapon . | . . . Unidentified Prototypes 1 | . 1 . Parts Lost 4 | . 2 2 Power 1 | . 1 . Propulsion 2 | . . 2 Utility 1 | . 1 . Weapon . | . . . Highest Loss Streak 2 | . 2 1 To Critical Strikes . | . . . Average Slot Usage (%) 90 | . 86 99 Engine 14 | . 14 14 Treads 5 | . 7 . Wheel 22 | . 20 27 Device 6 | . 3 14 Storage 14 | . 14 14 Energy Gun 21 | . 17 27 Ballistic Gun 5 | . 7 . Naked Turns . | . . . Heaviest Build 52 | 12 52 52 Greatest Support 40 | 40 40 32 Greatest Overweight (x) 2 | . 1 2 Average Overweight (x) 1 | . . 1 Largest Inventory Capacity 20 | 8 20 20 Average Capacity 16 | 7 15 20 Most Carried 20 | 1 20 20 Average Carried 12 | . 10 19 Final Capacity 20 | 8 20 20 Final Carried 19 | 1 17 19 Class Distribution -------------------- 89% | Mutant 10% | Scavenger-Mutant Dominant Class ---------------- Mutant | -10/Materials Mutant | -10/Mines Resources | -11 -10 -10 ----------- Run | Scr Mat Min Matter Collected 526 | 213 215 98 Remotely . | . . . Salvage Created 987 | . 652 335 Parts 50 | . 30 20 Haulers Intercepted 2 | . 2 . Recyclers Shooed . | . . . Parts Field Recycled . | . . . Retrieved Matter . | . . . Parts Self-Destructed . | . . . Prevented . | . . . Kills | -11 -10 -10 ------- Run | Scr Mat Min Combat Hostiles Destroyed 17 | . 11 6 Guns 14 | . 11 3 AOE 3 | . . 3 Classes Destroyed 8 | . 5 3 Worker 2 | . . 2 Builder 2 | . . 2 Tunneler 3 | . . 3 Hauler 2 | . 2 . Recycler 3 | . 2 1 Watcher 2 | . 2 . Swarmer 11 | . 5 6 Grunt 6 | . 6 . Thug 1 | . . 1 Best Kill Streak 3 | . 3 3 Combat Bots Only 3 | . 2 3 Max Kills in Single Turn 2 | . 1 2 Gunslinging . | . . . Exploded 2 | . . 2 Melee . | . . . Uniques/NPCs Destroyed . | . . . Combat | -11 -10 -10 -------- Run | Scr Mat Min Damage Taken 764 | . 527 237 Core 254 | . 138 116 Absorbed by Shields . | . . . Core Remaining (%) 100 | 100 . . Volleys Fired 88 | . 70 18 Largest 2 | . 2 2 Hottest 90 | . 90 90 Shots Fired 171 | . 139 32 Gun 169 | . 139 30 Cannon . | . . . Launcher 2 | . . 2 Special . | . . . Kinetic 82 | . 82 . Thermal 57 | . 57 . Explosive 2 | . . 2 Electromagnetic 30 | . . 30 Robot Hit Streak 12 | . 12 9 Robot Miss Streak 6 | . 6 2 Penetration Max . | . . . Secondary Targets 2 | . 2 . Max Gunslinging Chain 1 | . 1 . Shots Hit Robots 113 | . 84 29 Core Hits 51 | 1 32 18 Critical Kills . | . . . Critical Parts Destroyed . | . . . Critical Strikes 3 | . 3 . Burn 3 | . 3 . Melee Attacks . | . . . Impact . | . . . Slashing . | . . . Piercing . | . . . Sneak Attacks . | . . . Combat Hostiles . | . . . Follow-up Attacks . | . . . Damage Inflicted 1522 | 4 860 658 Guns 1262 | . 860 402 Cannons . | . . . Explosions 256 | . . 256 Melee . | . . . Ramming 4 | 4 . . Kinetic 386 | . 386 . Thermal 550 | . 474 76 Explosive 180 | . . 180 Electromagnetic 402 | . . 402 Impact . | . . . Slashing . | . . . Piercing . | . . . Highest Corruption 2 | . 2 2 Average Corruption 2 | . 2 2 Corruption Purged . | . . . Corruption Blocked . | . . . Effects 15 | . 8 7 Message Errors 4 | . 2 2 Matter Fused 3 | . 1 2 Heat Flow Errors 1 | . 1 . Energy Discharges 3 | . 2 1 Parts Rejected 1 | . 1 . Data Loss (minor) 3 | . 1 2 Overload Shots . | . . . Overflow Damage 13 | . . 13 Projectiles . | . . . Explosions 13 | . . 13 Melee . | . . . Knockbacks . | . . . Impact . | . . . Kinetic . | . . . Secondary . | . . . Self-Inflicted Damage 110 | . . 110 Shots 4 | . . 4 Rammed 1 | 1 . . Targets Rammed 1 | 1 . . Kicked . | . . . Crushed . | . . . Highest Temperature 401 | . 401 90 Average Temperature 52 | . 66 26 Received Heat Transfer 182 | . 162 20 Siege Activations . | . . . Robots Corrupted . | . . . Combat Hostiles . | . . . Parts Fried 2 | . . 2 Impact Corruptions . | . . . Robots Melted 1 | . 1 . Combat Hostiles . | . . . Parts Melted 4 | . 4 . Heat Transferred 1562 | . 1462 100 Parts Sabotaged . | . . . Parts Stolen . | . . . Parts Stripped . | . . . Power Chain Reactions 2 | . . 2 Missiles Intercepted . | . . . Alert | -11 -10 -10 ------- Run | Scr Mat Min Peak Influence 322 | . 322 203 Initial 58 | . . 58 Average 146 | . 172 112 Maximum Alert Level 1 | . 1 1 Low Security (%) 66 | 100 52 92 Level 1 33 | . 47 7 Level 2 . | . . . Level 3 . | . . . Level 4 . | . . . Level 5 . | . . . High Security . | . . . Max Security . | . . . Squads Dispatched 1 | . 1 . Investigation 1 | . 1 . Extermination . | . . . Reinforcement . | . . . Assault . | . . . Garrison . | . . . Intercept . | . . . Construction Impeded . | . . . Haulers Reinforced . | . . . Active Scanning Responses . | . . . Cargo Convoy Interrupts . | . . . Stealth | -11 -10 -10 --------- Run | Scr Mat Min Distress Signals 3 | . 3 . Communications Jammed . | . . . Distress Signals . | . . . Times Spotted 36 | . 27 9 Peak Tracking Total 6 | . 6 3 Tactical Retreats 1 | . 1 . Traps | -11 -10 -10 ------- Run | Scr Mat Min Traps Triggered 1 | . 1 . Indirectly . | . . . Trap Hack Attempts . | . . . Triggered . | . . . Disarmed . | . . . Reprogrammed . | . . . Reused . | . . . Traps Extracted . | . . . Installed . | . . . Triggered . | . . . Machines | -11 -10 -10 ---------- Run | Scr Mat Min Machines Disabled . | . . . Max in Single Turn . | . . . Machines Sabotaged . | . . . Garrisons Compromised . | . . . Overloaded Fab Kills . | . . . Hacking | -11 -10 -10 --------- Run | Scr Mat Min Machines Accessed 8 | . 8 . Terminals 7 | . 7 . Fabricators . | . . . Repair Stations . | . . . Recycling Units 1 | . 1 . Scanalyzers . | . . . Garrison Access . | . . . Total Hacks 20 | . 20 . Successful 7 | . 7 . Failed 13 | . 13 . Catastrophic . | . . . Database Lockouts . | . . . Manual 16 | . 16 . Terminals 18 | . 18 . Fabricators . | . . . Repair Stations . | . . . Recycling Units 2 | . 2 . Scanalyzers . | . . . Garrison Access . | . . . Terminal Hacks 5 | . 5 . Robot Analysis 2 | . 2 . Prototype ID Bank 1 | . 1 . Terminal Index 1 | . 1 . Locate Traps 1 | . 1 . Fabricator Hacks . | . . . Repair Station Hacks . | . . . Recycling Unit Hacks . | . . . Scanalyzer . | . . . Garrison Access Hacks . | . . . Unauthorized Hacks 2 | . 2 . Terminals 1 | . 1 . Operators 1 | . 1 . Fabricators . | . . . Repair Stations . | . . . Recycling Units 1 | . 1 . Tunnel 1 | . 1 . Scanalyzers . | . . . Garrison Access . | . . . Data Cores Recovered . | . . . Used . | . . . Hacking Detections 8 | . 8 . Full Trace Events . | . . . Feedback Events . | . . . Feedback Blocked . | . . . Robot Schematics Acquired . | . . . Robots Built . | . . . Authchips . | . . . Time . | . . . Total Robot Build Rating . | . . . Part Schematics Acquired . | . . . Parts Built . | . . . Authchips . | . . . Time . | . . . Total Part Build Rating . | . . . Parts Repaired . | . . . Time . | . . . Parts Recycled . | . . . Recycled Matter . | . . . Retrieved Matter . | . . . Retrieved Components . | . . . Parts Scanalyzed . | . . . Part Schematics Acquired . | . . . Parts Damaged . | . . . Bothacking | -11 -10 -10 ------------ Run | Scr Mat Min Used RIF Installer . | . . . Robots Hacked . | . . . Non-combat . | . . . Combat . | . . . Robot Hacks Applied . | . . . Relay Couplers Released . | . . . Fabnet Peak Effective % . | . . . Robots Rewired . | . . . Allies Hacked . | . . . Hacks Repelled . | . . . Allies | -11 -10 -10 -------- Run | Scr Mat Min Total Allies . | . . . Largest Group . | . . . Highest-Rated Group . | . . . Highest-Rated Ally . | . . . Total Orders . | . . . Ally Attacks . | . . . Total Damage . | . . . Kills . | . . . Allies Corrupted . | . . . Allies Melted . | . . . Intel | -11 -10 -10 ------- Run | Scr Mat Min Robot Analysis Total 2 | . 2 . Derelict Logs Recovered 2 | . . 2 Drone Launches . | . . . Drone Recoveries . | . . . Exploration | -11 -10 -10 ------------- Run | Scr Mat Min Turns Passed 1689 | 80 1105 504 Spaces Moved 1021 | 45 579 397 Core 2 | 2 . . Treads 157 | 43 114 . Legs . | . . . Wheels 862 | . 465 397 Hover . | . . . Flight . | . . . Fastest Speed 50 | 50 100 105 Average Speed 118 | 155 122 109 Slowest Speed 160 | 160 160 115 Overloaded Moves . | . . . Propulsion Burnouts . | . . . Robots Hopped . | . . . Cave-ins Triggered . | . . . Exploration Rate (%) 60 | 4 92 84 Regions Visited 2 Branch Regions 1 Pre-discovered Areas 2 | . 1 1 Known Exits Taken . | . . . Unknown Exits Taken 2 | 1 1 . Scrap Searched 3 | . . 3 Spaces Dug . | . . . Terrain Destroyed 23 | . . 23 Melee . | . . . Projectile . | . . . AOE 23 | . . 23 Terrain Rammed . | . . . Walls Destroyed . | . . . Machines Disabled . | . . . Actions | -11 -10 -10 --------- Run | Scr Mat Min Total 1347 | 52 861 434 Wait 166 | . 158 8 Move 1019 | 44 578 397 Hop . | . . . Pick Up 36 | 1 30 5 Fast Attach 8 | 6 2 . Attach 10 | . 8 2 Detach 1 | . 1 . Swap 4 | . 1 3 Drop 14 | . 13 1 Fire 88 | . 70 18 Melee . | . . . Ram . | . . . Kick . | . . . Crush 1 | 1 . . Escape Stasis . | . . . Rewire . | . . . Trap . | . . . Miscellaneous . | . . . Route ------- -11/Scrapyard -10/Materials (discovered 4 exits: *Mat x3 / [*Min]) -10/Mines (discovered 2 exits: *Mat x2) History --------- Turn | Location | Event 10 | -11/Scrapyard | Discovered new exit (range 15) 81 | -11/Scrapyard | Entered Materials 250 | -10/Materials | Discovered new exit (range 13) 325 | -10/Materials | Build established: Mutant 538 | -10/Materials | Discovered new exit (range 11) 573 | -10/Materials | Core integrity fell below 50% 841 | -10/Materials | Discovered new exit (range 16) 992 | -10/Materials | Discovered new exit (range 8) 1186 | -10/Materials | Entered Mines 1258 | -10/Mines | Discovered new exit (range 10) 1348 | -10/Mines | Identified exit to Materials 1555 | -10/Mines | Learned location of Mines (-9) 1688 | -10/Mines | Excavation squad dispatched 1688 | -10/Mines | A large section of the Mines collapsed 1689 | -10/Mines | Core integrity fell below 20% 1690 | -10/Mines | Destroyed by as-90643 with Assembled Blade Last Messages --------------- 01556_ K-01 Serf collects debris. 01567_ Searching scrap... 01567_ Found Heat Sink. 01567_ Found 33 Matter. 01580_ T-07 Excavator is excavating. 01588_ System corrupted: Component data lost. 01609_ U-05 Engineer builds a Wall. 01613_ T-07 Excavator destroyed. 01613_ U-05 Engineer builds a Wall. 01617_ U-05 Engineer lays Concrete. 01618_ U-05 Engineer destroyed. 01621_ U-05 Engineer builds a Wall. 01621_ Structural Scanner fried. 01621_ Welding Torch fried. 01621_ U-05 Engineer destroyed. 01688_ K-01 Serf crushed by falling debris. 01688_ ALERT: Suspicious cave-in, suspected derelict activity in mines. Dispatching escorted excavation squad. 01688_ System corrupted: Matter fused (-8). 01688_ K-01 Serf collects debris. Map ----- +----------------------------------------------------+ | | | | | | | | | | | | | | | | | | | ???????????????????????????????????????? | | ???????????????????????????????????????? | | ???????????????????????????????????????? | | ???????????????????????????????????????? | | ???????????????????????????????????????? | | ???????????????????????????????????????? | | ???????????????????????????????????????? | | ???????????????????????????????????????? | | ???????????????????????????????????????? | | ?????????????????????????###???????????? | | ???????????????????????? ##??????????# | | ?????????????####?????? #?????????## | | ????????????## ##???? #??????????# | | ????????????# # #??? #???????????# | | ????????????# k####?# #????????????## | | ????????????# #a# ## #?????????????# | | ?????????????##@# #??????????????? | | ?????????????###a# ######??????????????? | | ?????????????# ### #???????????????????? | | ?????????????# ?# #???????????????????? | | ????????????? ?# #?????????????????### | | ????????????###?# #????????????????## | | ????????????????# #########????????# | | ????????????????# #????????# | | ????????###?????########## #????????# | | ???????## ##????????????# #???????## | | ???????# #????????????# #??????## | | ???????# #????????????# ######?# | | ???????# ##???????????# #?# | | ???????## ####????????##### ### | | ????????## ############## ## | | ?????????## % % | | ??????????# ## ########## ######## ### | | ??????????# #####????????# #??????####?# | | ??????????# #????????????# #???????????? | | ??????????# #????????????# #???????????? | | ??????##### #????????????#%#???????????? | | ?????###### #????????????# #???????????? | | ?????##%%=%*#????????????# #???????????? | | ?????##!#####????????????# #???????????? | | ?????##=##???????????????# #???????????? | +----------------------------------------------------+ Best States ------------- Heat Dissipation 35 Coolant Potential 50 Energy Generation 10 Energy Capacity 250 Matter Stores 300 Matter Capacity 300 Sight Range 16 Terrain Scan Density 10 Evasion (%) 40 Recoil Reduction 2 Item Schematics ----------------- None Robot Schematics ------------------ None Fabricated ------------ Nothing Alien Tech Used ----------------- None Achievements -------------- None Challenges ------------ None Game ------ Seed HardcellElectronCore Manual? 0 Play Time 00:09:27 Cumulative 156.9 hours Start 2022.02.17 @ 11:46:16 End 2022.02.17 @ 11:53:56 Sessions 1 Manual Loads 0 Difficulty Rogue Special Mode None Game No. 263 Rogue 246 Adventurer 4 Explorer 13 Win Type - Total 8 Types 6/0/0/2/0/0/0/0/0 Lore% 64 Gallery% 80 Achievement% 68 Wizard Run 0 Options --------- ASCII 0 Keyboard 1 Movement Numpad Keybinds 0 Fullscreen 1 Font 18/SmallcapsGlow Map View 76x50 Tactical HUD 1 Map Filters NONE Filters NONE Steam 1 RUN: b22c9710-f6f7-4fa5-9d3f-939ca2eb8f51